bitfinex/quotes_BTCUSD_20251226
["timestamp","ask_amount","ask_price","bid_price","bid_amount"]
[1766755342659,3.6e-07,88762.0,88758.0,0.01126659]
[1766755342856,3.6e-07,88762.0,88759.0,0.01126646]
[1766755343092,3.6e-07,88762.0,88758.0,0.01126659]
[1766755344663,3.6e-07,88762.0,88756.0,0.01126684]
[1766755345600,0.01126644,88762.0,88754.0,0.01126709]
[1766755345837,3.6e-07,88762.0,88755.0,0.01126697]
[1766755346037,0.01126644,88762.0,88754.0,0.01126709]
[1766755346268,3.6e-07,88762.0,88752.0,0.06760365]
[1766755346405,3.6e-07,88762.0,88754.0,0.01126709]
[1766755347363,0.01126644,88762.0,88753.0,0.01126722]
[1766755347552,3.6e-07,88762.0,88755.0,0.01126697]
[1766755347752,3.6e-07,88762.0,88756.0,0.01126684]
[1766755348285,3.6e-07,88762.0,88757.0,0.01126671]
[1766755349953,3.6e-07,88762.0,88756.0,0.01126684]
[1766755350304,3.6e-07,88762.0,88755.0,0.01126697]
[1766755350917,3.6e-07,88762.0,88754.0,0.06760229]
[1766755351131,3.6e-07,88762.0,88755.0,0.01126697]
[1766755351347,3.6e-07,88762.0,88756.0,0.01126684]
[1766755352548,3.6e-07,88762.0,88758.0,0.01126659]
[1766755352763,3.6e-07,88762.0,88759.0,0.06759848]
[1766755353100,3.6e-07,88762.0,88761.0,0.05633104]
[1766755353499,3.6e-07,88762.0,88759.0,0.06759848]
[1766755353942,3.6e-07,88762.0,88761.0,0.05633104]
[1766755355271,3.6e-07,88762.0,88759.0,0.06759848]
[1766755355475,3.6e-07,88762.0,88760.0,0.05633129]
[1766755357412,0.05632236,88775.0,88765.0,0.0112657]
[1766755357576,0.01126417,88777.0,88768.0,0.01126532]
[1766755358021,0.0112643,88776.0,88768.0,0.01126532]
[1766755358167,0.01126417,88777.0,88768.0,0.01126532]
[1766755358375,0.01126443,88775.0,88765.0,0.01135454]
[1766755358582,0.01126468,88773.0,88765.0,0.01135454]
[1766755358783,0.02254468,88773.0,88765.0,8.884e-05]
[1766755358994,0.01128,88773.0,88766.0,0.01126557]
[1766755359909,0.01128,88773.0,88767.0,0.01126544]
[1766755360077,0.01128,88773.0,88766.0,0.01126557]
[1766755360437,0.01128,88773.0,88765.0,0.01135454]
[1766755360644,0.01128,88773.0,88766.0,0.01126557]
[1766755361608,0.01128,88773.0,88767.0,0.01126544]
[1766755361806,0.01128,88773.0,88766.0,0.01126557]
[1766755362412,0.01128,88773.0,88765.0,0.01135454]
[1766755363171,0.01126481,88772.0,88765.0,8.884e-05]
[1766755363396,0.01128,88773.0,88772.0,0.000191]
[1766755363810,0.01128,88773.0,88770.0,0.01126506]
[1766755364027,0.01073,88773.0,88769.0,0.01126519]
[1766755364660,0.01073,88773.0,88770.0,0.01126506]
[1766755364810,0.01073,88773.0,88769.0,0.01126519]
[1766755365429,0.1031979,88780.0,88771.0,0.01126494]
[1766755365746,0.02254379,88780.0,88772.0,0.01126481]
[1766755365960,0.02231926,88780.0,88772.0,0.01126481]
[1766755366120,0.02231926,88780.0,88771.0,0.01126494]
[1766755366359,0.02231926,88780.0,88772.0,0.01126481]
[1766755367714,0.02231926,88780.0,88771.0,0.01126494]
[1766755367924,0.02231926,88780.0,88772.0,0.01126481]
[1766755368118,0.02231926,88780.0,88771.0,0.01126494]
[1766755368315,0.01126392,88779.0,88770.0,0.4138161]
[1766755368629,0.01126392,88779.0,88771.0,0.01126494]
[1766755368987,0.01126392,88779.0,88770.0,0.4138161]
[1766755369169,0.01126392,88779.0,88771.0,0.01126494]
[1766755369380,0.01126405,88778.0,88770.0,0.4138161]
[1766755369604,0.01126405,88778.0,88770.0,0.40255104]
[1766755369807,0.01126405,88778.0,88769.0,0.01126519]
[1766755370006,0.01126405,88778.0,88770.0,0.01126506]
[1766755370248,0.01126417,88777.0,88769.0,0.01126519]
[1766755370450,0.01126417,88777.0,88768.0,0.01126532]
[1766755370647,0.01126417,88777.0,88769.0,0.01126519]
[1766755371515,0.01126417,88777.0,88768.0,0.01126532]
[1766755371719,0.01126417,88777.0,88769.0,0.01126519]
[1766755372517,0.01126417,88777.0,88768.0,0.01126532]
[1766755372880,0.05632152,88776.0,88767.0,0.41381648]
[1766755373069,0.01126443,88775.0,88767.0,0.41381648]
[1766755373455,0.0112643,88776.0,88768.0,0.01126532]
[1766755374713,0.01126417,88777.0,88769.0,0.01126519]
[1766755375449,0.01126405,88778.0,88770.0,0.01126506]
[1766755375926,0.01126392,88779.0,88771.0,0.01126494]
[1766755376123,0.01126392,88779.0,88770.0,0.01126506]
[1766755376284,0.01126405,88778.0,88770.0,0.01126506]
[1766755376851,0.01126392,88779.0,88770.0,0.01126506]
[1766755377206,0.01126405,88778.0,88770.0,0.01126506]
[1766755377557,0.01126392,88779.0,88770.0,0.01126506]
[1766755378442,0.01126405,88778.0,88770.0,0.01126506]
[1766755378589,0.01126405,88778.0,88769.0,0.06759085]
[1766755378803,0.01126405,88778.0,88770.0,0.01126506]
[1766755379003,0.00059663,88777.0,88770.0,0.01126506]
[1766755379709,0.00059663,88777.0,88769.0,0.01126519]
[1766755379908,0.00059663,88777.0,88770.0,0.01126506]
[1766755380861,0.00059663,88777.0,88769.0,0.01126519]
[1766755381587,0.00059663,88777.0,88770.0,0.01126506]
[1766755381735,0.00059663,88777.0,88771.0,0.01126494]
[1766755381941,0.02433507,88782.0,88779.0,0.0563193]
[1766755382263,0.01128,88797.0,88789.0,0.01126265]
[1766755382482,0.12400509,88800.0,88789.0,0.01126265]
[1766755382483,0.056437,88800.0,88792.0,0.01126227]
[1766755382645,0.056437,88800.0,88791.0,0.0112624]
[1766755382850,0.06769826,88800.0,88791.0,0.0112624]
[1766755383229,0.01126138,88799.0,88791.0,0.0112624]
[1766755383429,0.06769826,88800.0,88791.0,0.0112624]
[1766755383584,0.06769826,88800.0,88792.0,0.01126227]
[1766755383785,0.056437,88800.0,88793.0,0.01126214]
[1766755384024,0.06769826,88800.0,88792.0,0.01126227]
[1766755384207,0.000549,88792.0,88791.0,8.884e-05]
[1766755384854,0.06769826,88800.0,88792.0,0.01126227]
[1766755385834,0.06769826,88800.0,88791.0,0.01135124]
[1766755386046,0.06769826,88800.0,88792.0,0.01126227]
[1766755386669,0.056437,88800.0,88792.0,0.01126227]
[1766755386900,0.056437,88800.0,88793.0,0.01126214]
[1766755387071,0.06769826,88800.0,88792.0,0.01126227]
[1766755387286,0.056437,88800.0,88792.0,0.01126227]
[1766755388428,0.056437,88800.0,88793.0,0.01126214]
[1766755388681,0.056437,88800.0,88792.0,0.01126227]
[1766755388895,0.056437,88800.0,88793.0,0.01126214]
[1766755389258,0.000549,88793.0,88791.0,8.884e-05]
[1766755389468,0.056437,88800.0,88792.0,0.01126227]
[1766755389666,0.06769826,88800.0,88791.0,0.01135124]
[1766755389868,0.056437,88800.0,88793.0,0.01126214]
[1766755390077,0.06769826,88800.0,88792.0,0.01126227]
[1766755390285,0.056437,88800.0,88793.0,0.01126214]
[1766755390849,0.056437,88800.0,88792.0,0.01126227]
[1766755391021,0.056437,88800.0,88793.0,0.01126214]
[1766755392775,0.06769826,88800.0,88792.0,0.01126227]
[1766755392975,0.056437,88800.0,88792.0,0.01126227]
[1766755393205,0.06769826,88800.0,88791.0,0.01135124]
[1766755393403,0.00046016,88791.0,88790.0,0.40255104]
[1766755393602,0.00055,88790.0,88786.0,0.01126303]
[1766755393810,0.00055,88790.0,88782.0,0.01126354]
[1766755394013,0.01126329,88784.0,88781.0,0.0002]
[1766755394230,0.01126316,88785.0,88781.0,0.0002]
[1766755394780,0.01126316,88785.0,88777.0,0.01126417]
[1766755395257,0.01126329,88784.0,88776.0,0.0112643]
[1766755395441,0.01126316,88785.0,88777.0,0.01126417]
[1766755395587,0.01126316,88785.0,88776.0,0.0112643]
[1766755395994,0.00081,88776.0,88771.0,0.01126494]
[1766755396187,0.09652845,88776.0,88769.0,0.0112643]
[1766755396453,0.09652845,88776.0,88769.0,0.01126519]
[1766755396662,0.09652845,88776.0,88770.0,0.01126506]
[1766755397016,0.09652845,88776.0,88771.0,0.01126494]
[1766755398110,0.09652845,88776.0,88767.0,0.02254544]
[1766755398287,0.09652845,88776.0,88767.0,0.07887222]
[1766755398496,0.09652845,88776.0,88769.0,0.01126519]
[1766755398656,0.09652845,88776.0,88768.0,0.01126532]
[1766755398863,0.09652845,88776.0,88770.0,0.01126506]
[1766755399684,0.09652845,88776.0,88769.0,0.01126519]
[1766755400490,0.09652845,88776.0,88768.0,0.01126532]
[1766755400690,0.09652845,88776.0,88769.0,0.01100519]
[1766755401110,0.09652845,88776.0,88769.0,0.02228519]
[1766755401985,0.09652845,88776.0,88769.0,0.01128]
[1766755402185,0.09652845,88776.0,88768.0,0.02254532]
[1766755402406,0.09652845,88776.0,88769.0,0.01126519]
[1766755402808,0.09652845,88776.0,88770.0,0.01126506]
[1766755403257,0.09652845,88776.0,88773.0,0.01126468]
[1766755403398,0.09652845,88776.0,88772.0,0.01126481]
[1766755403589,0.09652845,88776.0,88771.0,0.01126494]
[1766755403831,0.09652845,88776.0,88770.0,0.06759005]
[1766755405988,0.09652845,88776.0,88769.0,0.01126519]
[1766755406543,0.09652845,88776.0,88770.0,0.01126506]
[1766755406769,0.09652845,88776.0,88769.0,0.01126519]
[1766755407360,0.09652845,88776.0,88770.0,0.01126506]
[1766755408767,0.09652845,88776.0,88772.0,0.01126481]
[1766755408973,4.845e-05,88776.0,88773.0,0.01126468]
[1766755409403,4.845e-05,88776.0,88772.0,0.01126481]
[1766755409777,4.845e-05,88776.0,88771.0,0.01126494]
[1766755411318,4.845e-05,88776.0,88770.0,0.06759003]
[1766755411485,4.845e-05,88776.0,88771.0,0.01126494]
[1766755412554,4.5e-07,88776.0,88771.0,0.01126494]
[1766755412768,4.5e-07,88776.0,88768.0,0.01128]
[1766755412928,0.000598,88771.0,88768.0,0.02254532]
[1766755413132,4.5e-07,88776.0,88769.0,0.01126519]
[1766755413356,4.5e-07,88776.0,88768.0,0.02254532]
[1766755414181,4.5e-07,88776.0,88769.0,0.01126519]
[1766755415949,4.5e-07,88776.0,88770.0,0.01126506]
[1766755419621,4.5e-07,88776.0,88771.0,0.01126494]
[1766755420141,4.5e-07,88776.0,88770.0,0.01126506]
[1766755420579,4.5e-07,88776.0,88768.0,0.02254532]
[1766755420915,4.5e-07,88776.0,88769.0,0.01126519]
[1766755421670,4.5e-07,88776.0,88770.0,0.01126506]
[1766755422130,4.5e-07,88776.0,88769.0,0.01126519]
[1766755422350,4.5e-07,88776.0,88770.0,0.01126506]
[1766755423383,4.5e-07,88776.0,88769.0,0.01126519]
[1766755424420,4.5e-07,88776.0,88769.0,0.06759073]
[1766755424616,4.5e-07,88776.0,88772.0,0.01126481]
[1766755424839,4.5e-07,88776.0,88771.0,0.06758936]
[1766755425603,4.5e-07,88776.0,88772.0,0.01126481]
[1766755425809,4.5e-07,88776.0,88771.0,0.01126494]
[1766755427154,4.5e-07,88776.0,88770.0,0.01126506]
[1766755427356,4.5e-07,88776.0,88771.0,0.01126494]
[1766755428061,4.5e-07,88776.0,88770.0,0.01126506]
[1766755428858,4.5e-07,88776.0,88771.0,0.01126494]
[1766755429796,4.5e-07,88776.0,88773.0,0.01126468]
[1766755430420,4.5e-07,88776.0,88772.0,0.01126481]
[1766755430620,4.5e-07,88776.0,88773.0,0.01126468]
[1766755435193,4.5e-07,88776.0,88772.0,0.01126481]
[1766755435430,4.5e-07,88776.0,88773.0,0.01126468]
[1766755438976,4.5e-07,88776.0,88772.0,0.01126481]
[1766755439251,4.5e-07,88776.0,88773.0,0.01126468]
[1766755439856,4.5e-07,88776.0,88774.0,0.05632222]
[1766755439995,4.5e-07,88776.0,88775.0,0.07348]
[1766755443758,4.5e-07,88776.0,88775.0,0.01128]
[1766755448782,4.5e-07,88776.0,88775.0,0.01185732]
[1766755448981,0.01126189,88795.0,88786.0,0.01126303]
[1766755449179,4.8e-05,88786.0,88785.0,0.01126316]
[1766755449323,0.01126189,88795.0,88785.0,0.01126316]
[1766755449523,0.01126202,88794.0,88785.0,0.41345533]
[1766755449729,0.05630918,88796.0,88786.0,0.01126303]
[1766755449928,0.01126189,88795.0,88787.0,0.01126291]
[1766755450182,0.01126189,88795.0,88786.0,0.01126303]
[1766755450341,0.01126202,88794.0,88786.0,0.01126303]
[1766755450543,0.01126189,88795.0,88786.0,0.01126303]
[1766755451306,0.01126164,88797.0,88789.0,0.01126265]
[1766755451501,0.01126151,88798.0,88789.0,0.01071265]
[1766755451725,0.01126151,88798.0,88790.0,0.01126252]
[1766755451914,0.03560187,88799.0,88790.0,0.01126252]
[1766755452116,0.01126151,88798.0,88789.0,0.01071265]
[1766755452329,0.03560187,88799.0,88791.0,0.0112624]
[1766755452501,0.03560187,88799.0,88790.0,0.01126252]
[1766755452502,0.0112591,88817.0,88805.0,0.01126062]
[1766755452707,0.45026393,88837.0,88781.0,0.04504]
[1766755452708,0.01125847,88822.0,88812.0,0.01125973]
[1766755452909,0.01125859,88821.0,88813.0,0.01125961]
[1766755453097,0.01125859,88821.0,88811.0,0.01125986]
[1766755453292,0.01125872,88820.0,88811.0,0.01125986]
[1766755453495,0.01125859,88821.0,88812.0,0.01125973]
[1766755453860,0.01125897,88818.0,88810.0,0.40219217]
[1766755454030,0.01125897,88818.0,88810.0,0.40194773]
[1766755454428,0.01125897,88818.0,88809.0,0.01126012]
[1766755454624,0.01125885,88819.0,88810.0,0.01125999]
[1766755455013,0.01125897,88818.0,88809.0,0.01126012]
[1766755455563,0.0112591,88817.0,88808.0,0.01126024]
[1766755455756,0.0112591,88817.0,88809.0,0.01126012]
[1766755456111,0.0112591,88817.0,88808.0,0.01126024]
[1766755456350,0.01125923,88816.0,88808.0,0.01126024]
[1766755456544,0.0112591,88817.0,88809.0,0.01126012]
[1766755456753,0.0112591,88817.0,88808.0,0.01126024]
[1766755457417,0.01125885,88819.0,88808.0,0.0675609]
[1766755457619,0.02253859,88821.0,88812.0,0.01125973]
[1766755457832,0.01128,88821.0,88814.0,0.01125948]
[1766755458045,0.01128,88821.0,88816.0,0.01125923]
[1766755458387,0.01128,88821.0,88814.0,0.06755691]
[1766755458594,0.01128,88821.0,88814.0,0.01125948]
[1766755458793,0.01128,88821.0,88815.0,0.01125935]
[1766755458949,0.01128,88821.0,88814.0,0.01125948]
[1766755460098,0.01125834,88823.0,88814.0,0.01125948]
[1766755460660,0.01125859,88821.0,88813.0,0.01125961]
[1766755460862,0.01125834,88823.0,88813.0,0.01125961]
[1766755461070,0.01125847,88822.0,88814.0,0.01125948]
[1766755461289,0.01125847,88822.0,88813.0,0.01125961]
[1766755461823,0.01125847,88822.0,88814.0,0.01125948]
[1766755462207,0.01125834,88823.0,88814.0,0.01125948]
[1766755462707,0.01125821,88824.0,88816.0,0.01125923]
[1766755462876,0.06754895,88825.0,88816.0,0.01125923]
[1766755463085,0.01125809,88825.0,88816.0,0.01125923]
[1766755463621,0.01125796,88826.0,88816.0,0.01125923]
[1766755463843,0.01125809,88825.0,88817.0,0.0112591]
[1766755464022,0.01125796,88826.0,88817.0,0.0112591]
[1766755464225,0.01125809,88825.0,88816.0,0.01125923]
[1766755464435,0.01125796,88826.0,88818.0,0.01125897]
[1766755464774,0.01125784,88828.0,88816.0,0.01125923]
[1766755464775,1.3e-07,88828.0,88816.0,0.01125923]
[1766755464975,1.3e-07,88828.0,88737.0,0.0004]
[1766755464976,0.05403093,88819.0,88791.0,0.05651143]
[1766755465177,0.01126138,88799.0,88791.0,0.01145758]
[1766755465436,0.01126151,88798.0,88791.0,0.01145758]
[1766755465759,0.0675703,88797.0,88791.0,0.01145758]
[1766755465935,0.22521,88806.0,88791.0,0.0002]
[1766755465936,0.01126088,88803.0,88791.0,0.0002]
[1766755466146,0.01126088,88803.0,88797.0,0.000549]
[1766755466341,0.01126075,88804.0,88795.0,0.01126189]
[1766755466960,0.01128,88811.0,88804.0,0.01126075]
[1766755467290,0.01128,88812.0,88804.0,0.01180975]
[1766755467496,0.01128,88812.0,88804.0,0.01126075]
[1766755467635,0.01128,88812.0,88805.0,0.01126062]
[1766755468232,0.01125999,88810.0,88802.0,0.011261]
[1766755468456,0.01126024,88808.0,88799.0,0.01126138]
[1766755468772,0.01126037,88807.0,88798.0,0.01126151]
[1766755468975,0.01126024,88808.0,88799.0,0.01126138]
[1766755469481,0.01126037,88807.0,88799.0,0.01126138]
[1766755469621,0.01126024,88808.0,88800.0,0.01126126]
[1766755469823,0.06756125,88809.0,88800.0,0.01126126]
[1766755470528,0.01125999,88810.0,88801.0,0.01126113]
[1766755470720,0.01125999,88810.0,88802.0,0.011261]
[1766755470922,0.01125986,88811.0,88803.0,0.01126088]
[1766755471367,0.01128,88812.0,88803.0,0.01126088]
[1766755471538,0.01125986,88811.0,88803.0,0.01126088]
[1766755472070,0.01125986,88811.0,88802.0,0.011261]
[1766755472275,0.01125986,88811.0,88803.0,0.01126088]
[1766755472653,0.01125999,88810.0,88801.0,0.01126113]
[1766755472975,0.01125999,88810.0,88800.0,0.06756705]
[1766755472976,0.01126012,88809.0,88800.0,0.06756705]
[1766755473179,0.01126012,88809.0,88801.0,0.01126113]
[1766755473381,0.01126012,88809.0,88800.0,0.06756705]
[1766755474133,0.01126024,88808.0,88799.0,0.01126138]
[1766755474298,0.01126012,88809.0,88800.0,0.01126126]
[1766755474443,0.01126012,88809.0,88801.0,0.01126113]
[1766755475289,0.01125999,88810.0,88801.0,0.01126113]
[1766755475473,0.01126012,88809.0,88801.0,0.01126113]
[1766755475874,0.01125999,88810.0,88802.0,0.011261]
[1766755476434,0.01125986,88811.0,88803.0,0.01126088]
[1766755477025,0.01125986,88811.0,88802.0,0.011261]
[1766755477850,0.01125986,88811.0,88803.0,0.01126088]
[1766755478299,0.01125999,88810.0,88802.0,0.011261]
[1766755479901,0.01125986,88811.0,88803.0,0.01126088]
[1766755480279,0.01125986,88811.0,88803.0,0.01106966]
[1766755480480,0.07889531,88812.0,88804.0,0.01126075]
[1766755480725,0.01125986,88811.0,88803.0,0.01106966]
[1766755483157,0.01126012,88809.0,88801.0,0.01126113]
[1766755483369,0.01125999,88810.0,88802.0,0.011261]
[1766755483522,0.01125986,88811.0,88803.0,0.01126088]
[1766755483729,0.02259633,88812.0,88804.0,0.01126075]
[1766755483926,0.0113366,88812.0,88805.0,0.01126062]
[1766755484164,0.0113366,88812.0,88804.0,0.01126075]
[1766755484165,0.02259633,88812.0,88804.0,0.01126075]
[1766755484786,0.02259633,88812.0,88803.0,0.01126088]
[1766755484945,0.02259633,88812.0,88804.0,0.01126075]
[1766755489683,0.0113366,88812.0,88805.0,0.01126062]
[1766755490032,0.02259633,88812.0,88804.0,0.01126075]
[1766755490256,0.0113366,88812.0,88804.0,0.01126075]
[1766755490460,0.02430012,88816.0,88813.0,0.01125961]
[1766755490600,0.01128,88817.0,88810.0,0.01125999]
[1766755490806,0.01128,88817.0,88811.0,0.01125986]
[1766755491243,0.01128,88817.0,88809.0,0.01126012]
[1766755491442,0.01128,88817.0,88811.0,0.01125986]
[1766755492159,0.0225391,88817.0,88809.0,0.06756063]
[1766755492459,0.0225391,88817.0,88807.0,0.06756185]
[1766755492672,0.0225391,88817.0,88807.0,0.01126037]
[1766755492870,0.01125923,88816.0,88808.0,0.01126024]
[1766755493303,0.0225391,88817.0,88809.0,0.01126012]
[1766755493458,0.01128,88817.0,88809.0,0.01126012]
[1766755493643,0.0225391,88817.0,88809.0,0.01126012]
[1766755494671,0.0225391,88817.0,88808.0,0.01126024]
[1766755495439,0.0225391,88817.0,88809.0,0.01126012]
[1766755495637,0.01128,88817.0,88809.0,0.01126012]
[1766755495837,0.01128,88817.0,88810.0,0.01125999]
[1766755496038,0.01128,88817.0,88811.0,0.01125986]
[1766755496545,0.01128,88817.0,88812.0,0.01125973]
[1766755496823,0.01128,88817.0,88811.0,0.01125986]
[1766755497676,0.01128,88817.0,88812.0,0.01125973]
[1766755497848,0.01128,88817.0,88811.0,0.01125986]
[1766755498774,0.0225391,88817.0,88808.0,0.06756115]
[1766755498956,0.01128,88817.0,88808.0,0.06756115]
[1766755499169,0.0225391,88817.0,88809.0,0.01126012]
[1766755499539,0.05629616,88816.0,88806.0,0.0112605]
[1766755499743,0.01125923,88816.0,88808.0,0.01126024]
[1766755501291,0.01128,88817.0,88809.0,0.01126012]
[1766755501479,0.0225391,88817.0,88809.0,0.01126012]
[1766755501683,0.01125923,88816.0,88808.0,0.01126024]
[1766755503230,0.01125948,88814.0,88805.0,0.01126062]
[1766755503448,0.01125948,88814.0,88806.0,0.0112605]
[1766755503624,0.01125973,88812.0,88802.0,0.022741]
[1766755503831,0.01126037,88807.0,88802.0,0.0002566]
[1766755504043,0.0563044,88803.0,88802.0,0.0002566]
[1766755504255,0.06756424,88805.0,88802.0,0.0002566]
[1766755505092,0.01126062,88805.0,88802.0,0.0002566]
[1766755505736,0.06756258,88807.0,88802.0,0.0002566]
[1766755505937,0.01126037,88807.0,88802.0,0.0002566]
[1766755506285,0.01126024,88808.0,88802.0,0.0002566]
[1766755506487,0.01126012,88809.0,88802.0,0.0002566]
[1766755506713,0.01128,88810.0,88802.0,0.0115176]
[1766755506864,0.01128,88810.0,88807.0,0.01126037]
[1766755507064,0.11032561,88819.0,88807.0,0.01126037]
[1766755507065,0.01128,88814.0,88811.0,0.01125986]
[1766755507266,0.01128,88814.0,88809.0,0.01126012]
[1766755507466,0.01128,88814.0,88808.0,0.06756099]
[1766755507631,0.01128,88814.0,88807.0,0.01126037]
[1766755507835,0.01125935,88815.0,88807.0,0.01126037]
[1766755508317,0.0112591,88817.0,88808.0,0.01126024]
[1766755509133,0.01125923,88816.0,88807.0,0.01126037]
[1766755509701,0.01125923,88816.0,88808.0,0.01126024]
[1766755511286,0.000549,88808.0,88802.0,0.0115176]
[1766755511457,0.01126012,88809.0,88802.0,0.0002566]
[1766755511636,0.01126024,88808.0,88802.0,0.0002566]
[1766755512046,0.01126012,88809.0,88802.0,0.0002566]
[1766755512453,0.06755877,88812.0,88802.0,0.0115176]
[1766755512640,0.01125986,88811.0,88803.0,0.01126088]
[1766755512843,0.01125999,88810.0,88802.0,0.0115176]
[1766755513519,0.01126012,88809.0,88802.0,0.0002566]
[1766755513979,0.01125999,88810.0,88802.0,0.0002566]
[1766755514125,0.01126012,88809.0,88802.0,0.0002566]
[1766755514527,0.000256,88802.0,88797.0,0.01128]
[1766755514880,0.000256,88802.0,88797.0,0.02254164]
[1766755515096,0.0112605,88806.0,88797.0,0.02254164]
[1766755515386,0.00010757,88806.0,88799.0,0.01126138]
[1766755515582,0.00010757,88806.0,88803.0,0.01126088]
[1766755516209,0.000549,88803.0,88799.0,0.01126138]
[1766755516427,0.000549,88803.0,88797.0,0.02254164]
[1766755516592,0.000549,88803.0,88799.0,0.01126138]
[1766755516756,0.00010757,88806.0,88799.0,0.01126138]
[1766755517172,0.00010757,88806.0,88800.0,0.01126126]
[1766755517655,0.00010757,88806.0,88799.0,0.01126138]
[1766755518017,0.00010757,88806.0,88799.0,0.06756781]
[1766755518435,0.00010757,88806.0,88802.0,0.011261]
[1766755518666,0.00010757,88806.0,88800.0,0.01126126]
[1766755521209,0.00010757,88806.0,88799.0,0.01126138]
[1766755522204,0.00010757,88806.0,88800.0,0.01126126]
[1766755522589,0.00010757,88806.0,88801.0,0.01126113]
[1766755522765,0.00010757,88806.0,88800.0,0.01126126]
[1766755523406,0.00010757,88806.0,88801.0,0.01126113]
[1766755524768,0.00010757,88806.0,88802.0,0.011261]
[1766755525002,0.00010757,88806.0,88803.0,0.01126088]
[1766755525536,0.00010757,88806.0,88804.0,0.0563033]
[1766755536262,0.00010757,88806.0,88800.0,0.06756741]
[1766755536496,0.00010757,88806.0,88803.0,0.01126088]
[1766755537551,0.000549,88803.0,88798.0,0.06756876]
[1766755537747,0.000549,88803.0,88798.0,0.01126151]
[1766755537948,0.01126062,88805.0,88797.0,0.01128]
[1766755538163,0.01136807,88806.0,88797.0,0.02254164]
[1766755538535,0.00010757,88806.0,88798.0,0.01126151]
[1766755538735,0.00010757,88806.0,88800.0,0.01126126]
[1766755539384,0.00010757,88806.0,88801.0,0.01071213]
[1766755539715,0.00010757,88806.0,88803.0,0.01126088]
[1766755540883,0.00010757,88806.0,88802.0,0.011261]
[1766755541076,0.00010757,88806.0,88801.0,0.01071213]
[1766755541306,0.00010757,88806.0,88802.0,0.011261]
[1766755542345,0.00010757,88806.0,88803.0,0.01126088]
[1766755542746,0.00010757,88806.0,88802.0,0.011261]
[1766755542944,0.00010757,88806.0,88803.0,0.01126088]
[1766755543751,0.00010757,88806.0,88802.0,0.011261]
[1766755543957,0.00010757,88806.0,88801.0,0.01126113]
[1766755544903,0.00010757,88806.0,88802.0,0.011261]
[1766755545043,0.00010757,88806.0,88801.0,0.01126113]
[1766755546373,0.00010757,88806.0,88802.0,0.011261]
[1766755546580,0.00010757,88806.0,88801.0,0.01126113]
[1766755547791,0.00010757,88806.0,88800.0,0.01126126]
[1766755548648,0.00010757,88806.0,88801.0,0.01126113]
[1766755550316,0.00010757,88806.0,88801.0,0.06756651]
[1766755550513,0.00010757,88806.0,88803.0,0.01126088]
[1766755554430,0.00010757,88806.0,88802.0,0.011261]
[1766755554572,0.00010757,88806.0,88803.0,0.01126088]
[1766755554839,0.00010757,88806.0,88801.0,0.01126113]
[1766755555260,0.01136807,88806.0,88797.0,0.01128]
[1766755555578,0.01126062,88805.0,88797.0,0.02254164]
[1766755555783,0.00010757,88806.0,88798.0,0.01126151]
[1766755556103,0.00010757,88806.0,88801.0,0.01126113]
[1766755557415,0.00010757,88806.0,88802.0,0.011261]
[1766755557591,0.00010757,88806.0,88801.0,0.01126113]
[1766755557911,0.00010757,88806.0,88802.0,0.011261]
[1766755558071,0.00010757,88806.0,88801.0,0.01126113]
[1766755558745,0.00010757,88806.0,88802.0,0.011261]
[1766755558871,0.00010757,88806.0,88801.0,0.01126113]
[1766755559083,0.00010757,88806.0,88800.0,0.01126126]
[1766755559265,0.00010757,88806.0,88801.0,0.01126113]
[1766755559665,0.00010757,88806.0,88802.0,0.011261]
[1766755559898,0.00010757,88806.0,88801.0,0.01126113]
[1766755560323,0.00010757,88806.0,88802.0,0.011261]
[1766755560504,0.00010757,88806.0,88801.0,0.01126113]
[1766755561782,0.00010757,88806.0,88800.0,0.01126126]
[1766755562089,0.00010757,88806.0,88801.0,0.01126113]
[1766755562299,0.00010757,88806.0,88800.0,0.01126126]
[1766755562509,0.00010757,88806.0,88802.0,0.011261]
[1766755562976,0.00010757,88806.0,88801.0,0.01126113]
[1766755565497,0.00010757,88806.0,88799.0,0.01126138]
[1766755565626,0.00010757,88806.0,88800.0,0.01126126]
[1766755565825,0.00010757,88806.0,88801.0,0.01126113]
[1766755566350,0.00010757,88806.0,88800.0,0.01126126]
[1766755567345,0.00010757,88806.0,88801.0,0.01126113]
[1766755567509,0.00010757,88806.0,88800.0,0.01126126]
[1766755567671,0.00010757,88806.0,88801.0,0.01126113]
[1766755568261,0.00010757,88806.0,88800.0,0.01126126]
[1766755568712,0.00010757,88806.0,88801.0,0.01126113]
[1766755569035,0.00010757,88806.0,88800.0,0.01126126]
[1766755569607,0.00010757,88806.0,88801.0,0.01126113]
[1766755570015,0.00010757,88806.0,88800.0,0.01126126]
[1766755571461,0.00010757,88806.0,88801.0,0.01126113]
[1766755571742,0.00010757,88806.0,88802.0,0.011261]
[1766755571937,0.00010757,88806.0,88801.0,0.01126113]
[1766755572152,0.00010757,88806.0,88799.0,0.01126138]
[1766755572337,0.00010757,88806.0,88800.0,0.01126126]
[1766755574242,0.00010757,88806.0,88801.0,0.01126113]
[1766755574434,0.00010757,88806.0,88800.0,0.01126126]
[1766755575339,0.00010757,88806.0,88799.0,0.01126138]
[1766755576612,0.00010757,88806.0,88800.0,0.01126126]
[1766755576818,0.00010757,88806.0,88799.0,0.01126138]
[1766755577320,0.00010757,88806.0,88800.0,0.01126126]
[1766755577526,0.00010757,88806.0,88801.0,0.01126113]
[1766755579391,0.00010757,88806.0,88802.0,0.011261]
[1766755579688,0.00010757,88806.0,88801.0,0.01126113]
[1766755580255,0.00010757,88806.0,88800.0,0.01126126]
[1766755581441,0.00010757,88806.0,88799.0,0.01126138]
[1766755581804,0.00010757,88806.0,88800.0,0.01126126]
[1766755582440,0.00010757,88806.0,88801.0,0.01126113]
[1766755583602,0.00010757,88806.0,88802.0,0.011261]
[1766755583807,0.00010757,88806.0,88800.0,0.01126126]
[1766755584548,0.00010757,88806.0,88801.0,0.01126113]
[1766755584726,0.00010757,88806.0,88802.0,0.011261]
[1766755585348,0.00010757,88806.0,88801.0,0.01126113]
[1766755585571,0.00010757,88806.0,88802.0,0.011261]
[1766755586030,0.00010757,88806.0,88801.0,0.01126113]
[1766755586250,0.00010757,88806.0,88802.0,0.011261]
[1766755586633,0.00010757,88806.0,88801.0,0.01126113]
[1766755587252,0.00010757,88806.0,88795.0,0.05630826]
[1766755587450,0.00055,88801.0,88795.0,0.06757106]
[1766755587654,0.01126075,88804.0,88796.0,0.01126176]
[1766755587859,0.01136807,88806.0,88798.0,0.01126151]
[1766755588022,0.00010757,88806.0,88799.0,0.01126138]
[1766755588219,0.00010757,88806.0,88797.0,0.02254164]
[1766755588416,0.06756558,88803.0,88797.0,0.01128]
[1766755588790,0.01126075,88804.0,88797.0,0.01128]
[1766755588977,0.01136807,88806.0,88797.0,0.02254164]
[1766755589182,0.00010757,88806.0,88798.0,0.01126151]
[1766755589847,0.00010757,88806.0,88799.0,0.01126138]
[1766755590935,0.01136807,88806.0,88798.0,0.01126151]
[1766755591400,0.00010757,88806.0,88799.0,0.01126138]
[1766755593456,0.00010757,88806.0,88800.0,0.01126126]